bitfinex-derivatives/quotes_ETHF0:USTF0_20250209
["timestamp","ask_amount","ask_price","bid_price","bid_amount"]
[1739102472527,0.005646,2656.2,2655.8,3.2078]
[1739102472933,0.005646,2656.2,2656.1,3.2078]
[1739102473138,3.2078,2656.9,2656.1,3.2078]
[1739102473333,3.2078,2656.9,2656.4,3.2078]
[1739102473531,3.2078,2656.9,2656.5,40.8]
[1739102473731,3.2078,2656.9,2656.6,0.5635]
[1739102474629,3.2078,2656.9,2656.5,40.8]
[1739102476337,3.2078,2656.9,2656.6,1.1475]
[1739102482644,0.005646,2657.0,2656.7,3.2078]
[1739102482837,3.2078,2657.9,2656.7,3.7921]
[1739102483139,3.2078,2657.9,2657.3,3.2078]
[1739102483339,3.2078,2657.9,2657.4,1.1503]
[1739102483640,3.2078,2657.9,2657.3,3.2078]
[1739102483833,3.8032,2657.9,2657.1,0.5689]
[1739102484032,3.80696398,2657.9,2657.4,0.005646]
[1739102485141,3.2078,2657.5,2657.4,0.005646]
[1739102487239,3.2078,2657.8,2657.4,0.005646]
[1739102491845,3.2078,2657.5,2657.4,0.005646]
[1739102492046,4.36310773,2657.7,2657.4,0.005646]
[1739102492247,7.57090773,2657.8,2657.4,0.005646]
[1739102492745,3.2078,2657.8,2657.4,0.005646]
[1739102494840,0.00376398,2657.9,2657.4,0.005646]
[1739102495046,0.00376398,2657.9,2657.6,3.2078]
[1739102498050,0.00376398,2657.9,2657.7,1.77]
[1739102498250,0.00376398,2657.9,2657.8,1.1326]
[1739102498450,0.00376398,2657.9,2657.8,1.7157]
[1739102498957,0.00376398,2657.9,2657.8,42.5157]
[1739102500347,0.00376398,2657.9,2657.6,3.2078]
[1739102501551,0.00376398,2657.9,2657.5,2.9014]
[1739102501748,0.00376398,2657.9,2657.6,3.2078]
[1739102504649,0.00376398,2657.9,2657.6,3.5101694]
[1739102506949,0.00376398,2657.9,2657.6,3.2078]
[1739102507153,0.00376398,2657.9,2657.4,0.005646]
[1739102507356,0.00376398,2657.9,2657.5,1.1578]
[1739102507751,0.00376398,2657.9,2657.5,41.9578]
[1739102516062,0.00376398,2657.9,2657.5,41.3588]
[1739102521570,0.00255443,2657.7,2657.5,41.3588]
[1739102523471,0.00255443,2657.7,2657.6,0.5835]
[1739102523865,0.00255443,2657.7,2657.5,0.5588]
[1739102524065,0.00255443,2657.7,2657.6,40.8]
[1739102525979,0.00255443,2657.7,2657.6,44.0078]
[1739102526271,3.2078,2658.7,2657.6,44.0078]
[1739102526468,1.1398,2658.2,2657.7,1.728]
[1739102527270,3.2078,2658.1,2657.6,40.8]
[1739102527476,3.2078,2657.8,2657.4,0.005646]
[1739102527666,1.1301,2657.7,2657.4,0.005646]
[1739102527866,3.2078,2657.5,2657.4,0.005646]
[1739102528676,13.39011519,2657.5,2656.8,40.8]
[1739102528976,3.2078,2657.2,2656.8,40.8]
[1739102529176,1.1301,2657.1,2656.8,40.8]
[1739102529971,3.2078,2657.6,2656.8,40.8]
[1739102530173,4.3195,2657.6,2656.8,40.8]
[1739102531574,4.3195,2657.6,2656.9,3.2078]
[1739102531868,3.7715,2657.6,2656.9,3.2078]
[1739102532173,4.3195,2657.6,2656.9,3.2078]
[1739102534176,4.3195,2657.6,2657.0,40.8]
[1739102534573,4.07555271,2657.5,2656.7,1.808846]
[1739102534780,3.2078,2657.3,2656.7,1.808846]
[1739102535081,3.2078,2657.3,2656.8,40.8]
[1739102536476,4.3195,2657.6,2656.8,40.8]
[1739102537481,4.14847957,2657.5,2656.8,40.8]
[1739102538183,3.2078,2657.2,2656.8,40.8]
[1739102538876,3.2078,2657.2,2656.7,1.211846]
[1739102539072,0.5883,2657.1,2656.8,0.5675]
[1739102539277,0.5883,2657.1,2656.8,40.8]
[1739102539472,0.5666,2657.0,2656.7,1.211846]
[1739102541170,0.5883,2657.1,2656.7,1.211846]
[1739102541471,3.2078,2657.2,2656.7,1.211846]
[1739102541676,3.2078,2657.3,2656.7,4.419646]
[1739102541979,4.1123523,2657.5,2656.7,4.419646]
[1739102542371,4.3627,2657.6,2656.7,4.419646]
[1739102542777,4.1123523,2657.5,2656.7,4.419646]
[1739102544079,4.3627,2657.6,2656.7,4.419646]
[1739102544279,4.3627,2657.6,2656.7,6.155646]
[1739102544683,3.7961,2657.6,2657.0,3.2078]
[1739102544882,3.7961,2657.6,2657.1,0.575]
[1739102545089,3.2078,2657.6,2657.2,0.6045]
[1739102545283,3.2078,2657.6,2657.2,1.1903]
[1739102545476,3.2078,2657.6,2657.3,40.8]
[1739102546783,0.005646,2657.7,2657.3,44.0078]
[1739102546989,0.005646,2657.7,2657.4,1.733]
[1739102547581,0.005646,2657.7,2657.6,3.2078]
[1739102549086,0.005646,2657.7,2657.4,1.733]
[1739102549488,0.005646,2657.7,2657.5,3.2078]
[1739102549687,0.005646,2657.7,2657.6,0.591]
[1739102550584,0.005646,2657.7,2657.2,1.1903]
[1739102550792,3.213446,2657.7,2657.2,1.1903]
[1739102555398,3.213446,2657.7,2657.2,4.3981]
[1739102557302,3.213446,2657.7,2657.3,40.8]
[1739102558391,0.005646,2657.7,2657.3,40.8]
[1739102558598,0.005646,2657.7,2657.5,3.2078]
[1739102558797,0.005646,2657.7,2657.6,0.5471]
[1739102560002,3.2078,2658.5,2657.6,6.5471]
[1739102560204,3.2078,2658.5,2657.8,3.2078]
[1739102561398,0.5654,2658.4,2657.8,3.2078]
[1739102562201,3.2078,2658.2,2657.8,3.2078]
[1739102562407,0.5705,2658.1,2657.8,3.2078]
[1739102562610,1.1386,2658.1,2657.8,3.2078]
[1739102564897,1.1386,2658.1,2657.6,1.7126]
[1739102565103,1.1386,2658.1,2657.6,4.9204]
[1739102566299,1.1386,2658.1,2657.6,1.7126]
[1739102569313,1.1386,2658.1,2657.6,1.1655]
[1739102569513,1.1386,2658.1,2657.7,0.546]
[1739102569905,1.1386,2658.1,2657.6,1.1655]
[1739102571412,1.1386,2658.1,2657.7,40.8]
[1739102572618,1.1386,2658.1,2657.4,0.546]
[1739102572810,1.1386,2658.1,2657.7,0.5877]
[1739102573010,1.1386,2658.1,2657.8,40.8]
[1739102573318,1.1386,2658.1,2657.9,0.5738]
[1739102573616,1.1386,2658.1,2657.8,40.8]
[1739102574518,1.1386,2658.1,2657.7,0.5877]
[1739102575313,1.1386,2658.1,2657.6,41.3738]
[1739102580518,3.2078,2658.2,2657.6,44.5816]
[1739102580817,4.3554,2658.5,2657.6,44.5816]
[1739102581819,4.3554,2658.5,2657.9,3.2078]
[1739102582018,4.3554,2658.5,2658.0,1.1911]
[1739102582324,4.3554,2658.5,2658.1,0.5815]
[1739102583324,3.91546736,2658.4,2658.0,0.005646]
[1739102583626,4.48006736,2658.4,2658.0,0.005646]
[1739102584033,3.2078,2658.2,2658.0,0.005646]
[1739102584728,4.157498,2658.1,2658.0,0.005646]
[1739102585523,3.2078,2658.2,2658.0,0.005646]
[1739102587127,0.5528,2658.1,2658.0,0.005646]
[1739102587326,3.2078,2658.2,2658.0,0.005646]
[1739102587730,3.7572,2658.5,2658.0,0.005646]
[1739102587931,0.564,2658.4,2658.0,0.005646]
[1739102588229,4.51421453,2658.4,2658.0,0.005646]
[1739102588928,3.2078,2658.5,2658.0,0.005646]
[1739102590932,4.3553,2658.8,2658.0,0.005646]
[1739102593438,7.3493,2658.8,2658.0,0.005646]
[1739102593728,3.2078,2658.5,2658.0,0.005646]
[1739102595432,3.2078,2658.5,2658.1,3.2078]
[1739102595636,7.3493,2658.8,2658.2,1.7207]
[1739102595836,1.1475,2658.8,2658.2,1.7207]
[1739102596234,3.2078,2659.1,2658.2,1.7207]
[1739102596532,4.3756,2659.1,2658.4,3.2078]
[1739102596839,4.3756,2659.1,2658.2,1.7207]
[1739102597838,4.3756,2659.1,2658.4,3.2078]
[1739102598046,4.3756,2659.1,2658.5,40.8]
[1739102600238,4.3756,2659.1,2658.2,1.7207]
[1739102600239,3.93030591,2659.0,2658.2,3.4017]
[1739102600440,4.50880591,2659.0,2658.2,3.4017]
[1739102600730,3.2078,2658.8,2658.2,3.4017]
[1739102601835,4.3756,2659.1,2658.2,3.4017]
[1739102602833,4.3756,2659.1,2658.4,3.2078]
[1739102603036,1.1678,2659.1,2658.4,3.2078]
[1739102603338,3.2078,2659.4,2658.4,3.2078]
[1739102603640,3.8029,2659.4,2658.4,3.2078]
[1739102603827,4.3292,2659.4,2658.2,3.4017]
[1739102604033,3.8029,2659.4,2658.2,3.4017]
[1739102604233,3.8029,2659.4,2658.2,3.70328232]
[1739102604635,3.8029,2659.4,2658.5,3.2078]
[1739102604835,3.8029,2659.4,2658.6,0.5868]
[1739102605036,3.8029,2659.4,2658.7,1.1768]
[1739102606940,3.8029,2659.4,2658.8,3.2078]
[1739102607541,3.8029,2659.4,2658.8,4.8828]
[1739102607938,3.8029,2659.4,2658.8,1.675]
[1739102608537,3.8029,2659.4,2658.8,4.8828]
[1739102609438,3.8029,2659.4,2658.8,1.675]
[1739102610933,3.8029,2659.4,2658.7,1.1768]
[1739102611138,3.2078,2659.1,2658.7,1.1768]
[1739102611343,0.5633,2659.0,2658.7,1.1768]
[1739102611640,0.5818,2658.9,2658.7,1.1768]
[1739102613538,0.5633,2659.0,2658.7,1.1768]
[1739102613745,0.5986,2659.2,2658.7,1.1768]
[1739102617939,3.2078,2659.0,2658.7,1.1768]
[1739102618347,0.5542,2658.9,2658.7,1.1768]
[1739102619634,0.5542,2658.9,2658.6,0.5868]
[1739102622049,0.5986,2659.2,2658.6,3.7946]
[1739102622540,0.5986,2659.2,2658.7,40.8]
[1739102622736,0.5986,2659.2,2658.8,1.1516]
[1739102623343,0.5533,2659.3,2658.8,1.1516]
[1739102623545,0.5624,2659.5,2658.9,3.2078]
[1739102623945,0.5624,2659.5,2659.0,0.5719]
[1739102624347,1.1119,2659.5,2659.0,0.5719]
[1739102625951,1.1119,2659.5,2659.0,2.2399]
[1739102628057,1.1119,2659.5,2659.1,40.8]
[1739102629250,3.2078,2659.6,2659.1,40.8]
[1739102629455,3.2078,2659.6,2659.2,3.2078]
[1739102629655,3.2078,2659.6,2659.3,1.1418]
[1739102630050,3.2078,2659.6,2659.4,0.5598]
[1739102631552,3.2078,2659.6,2659.3,1.1418]
[1739102631747,0.5712,2659.5,2659.3,1.1418]
[1739102631945,1.1733,2659.5,2659.3,1.1418]
[1739102633049,1.1733,2659.5,2659.1,41.3646]
[1739102633465,1.1733,2659.5,2659.1,0.5646]
[1739102633867,1.1733,2659.5,2659.0,2.917]
[1739102634170,1.1733,2659.5,2659.1,0.5788]
[1739102635360,3.2078,2659.6,2659.1,0.5788]
[1739102635963,3.2078,2659.7,2659.1,0.5788]
[1739102641566,1.1336,2659.8,2659.1,0.5788]
[1739102643371,1.1336,2659.8,2659.1,3.7866]
[1739102643670,0.5817,2659.8,2659.1,3.7866]
[1739102643862,0.5817,2659.8,2659.4,3.2078]
[1739102644062,0.5817,2659.8,2659.5,1.7529]
[1739102644269,3.2078,2660.0,2659.5,1.7529]
[1739102644669,0.5476,2660.2,2659.7,3.2078]
[1739102644969,3.2078,2660.9,2659.8,3.2078]
[1739102645177,1.1259,2660.7,2660.1,3.2078]
[1739102645377,1.1259,2660.7,2660.2,1.1394]
[1739102645871,0.5783,2660.7,2660.2,1.1394]
[1739102646072,3.2078,2660.9,2660.4,3.2078]
[1739102646275,0.5908,2660.8,2660.3,0.5608]
[1739102647270,0.5908,2660.8,2660.4,3.2078]
[1739102648071,0.5908,2660.8,2660.3,0.5608]
[1739102652875,3.2078,2660.9,2660.3,0.5608]
[1739102653070,3.2078,2660.9,2660.4,3.2078]
[1739102654374,3.2078,2662.0,2660.8,3.2078]
[1739102654578,3.2078,2662.0,2660.5,4.82225131]
[1739102654579,1.1938,2661.8,2661.2,3.2078]
[1739102654973,1.1938,2661.8,2661.3,40.8]
[1739102655978,1.1938,2661.8,2661.5,3.2078]
[1739102656784,1.1938,2661.8,2661.3,42.458]
[1739102656977,1.1938,2661.8,2661.3,40.8]
[1739102657183,7.27303686,2661.7,2661.1,0.005646]
[1739102659081,3.2078,2661.7,2661.1,0.005646]
[1739102659674,3.2078,2661.7,2661.1,3.213446]
[1739102659875,1.1938,2661.8,2661.1,3.213446]
[1739102661977,3.2078,2661.7,2661.1,0.005646]
[1739102662379,3.2078,2661.4,2661.1,0.005646]
[1739102662580,1.1053,2661.3,2661.1,0.005646]
[1739102662884,1.6935,2661.3,2661.1,0.005646]
[1739102664377,1.142,2661.3,2661.1,0.005646]
[1739102664884,1.142,2661.3,2661.2,40.8]
[1739102665285,3.2078,2661.8,2661.2,40.8]
[1739102665480,1.1336,2661.7,2661.3,0.6004]
[1739102668384,1.1336,2661.7,2661.4,1.1105]
[1739102669386,1.1336,2661.7,2661.4,0.5503]
[1739102671781,1.1336,2661.7,2661.4,2.2063]
[1739102673686,1.1336,2661.7,2661.3,0.6004]
[1739102674583,1.1336,2661.7,2661.4,0.5513]
[1739102674783,0.0035162,2661.6,2661.4,0.5513]
[1739102676484,0.0035162,2661.6,2661.3,2.2554]
[1739102676789,0.0035162,2661.6,2661.1,0.005646]
[1739102679882,3.2078,2661.5,2661.1,0.005646]
[1739102680285,3.2078,2661.5,2661.1,40.805646]
[1739102681088,3.2078,2661.5,2661.2,1.185]
[1739102681294,0.0035162,2661.6,2661.2,1.7385]
[1739102682596,0.0035162,2661.6,2661.2,4.9463]
[1739102683786,0.0035162,2661.6,2661.2,1.7385]
[1739102686591,0.0035162,2661.6,2661.2,4.9463]
[1739102690901,0.0035162,2661.6,2661.4,3.2078]
[1739102700800,0.0035162,2661.6,2661.2,1.7385]
[1739102701005,0.0035162,2661.6,2661.3,1.65]
[1739102701904,0.0035162,2661.6,2661.2,3.3885]
[1739102702807,0.0035162,2661.6,2661.4,3.2078]
[1739102706708,0.0035162,2661.6,2661.2,3.3855]
[1739102707109,0.0035162,2661.6,2661.2,1.7385]
[1739102707408,0.0035162,2661.6,2661.1,44.013446]
[1739102707801,0.6052162,2661.6,2661.2,0.6027]
[1739102709507,0.6052162,2661.6,2661.1,44.579446]
[1739102710115,0.6052162,2661.6,2661.1,44.013446]
[1739102711207,3.5992162,2661.6,2661.1,44.013446]
[1739102711410,3.5992162,2661.6,2661.1,3.213446]
[1739102712609,3.2078,2661.5,2661.1,0.005646]
[1739102712810,3.73369,2661.5,2661.1,0.005646]
[1739102713210,3.2078,2661.5,2661.1,0.005646]
[1739102713416,3.2078,2661.2,2661.1,0.005646]
[1739102714317,3.7903,2661.2,2661.1,0.005646]
[1739102716315,0.5825,2661.2,2661.1,0.005646]
[1739102718613,3.7903,2661.2,2661.1,0.005646]
[1739102722411,0.5825,2661.2,2661.1,0.005646]
[1739102722617,3.7903,2661.2,2661.1,0.005646]
[1739102724123,4.31624,2661.2,2661.1,0.005646]
[1739102724329,3.7903,2661.2,2661.1,0.005646]
[1739102725025,3.2078,2661.2,2661.1,0.005646]
[1739102731325,3.2078,2661.2,2660.6,41.9069]
[1739102731326,3.2078,2661.2,2660.6,1.1069]
[1739102731622,3.2078,2660.9,2660.6,1.1069]
[1739102731827,0.5623,2660.8,2660.6,1.1069]
[1739102732725,3.2078,2660.9,2660.6,1.1069]
[1739102736929,0.005646,2661.0,2660.6,1.1069]
[1739102741234,0.005646,2661.0,2660.9,3.2078]
[1739102742327,0.0035162,2661.6,2660.9,3.2078]
[1739102742529,0.0035162,2661.6,2661.2,3.2078]
[1739102742831,0.0035162,2661.6,2661.3,41.9429]
[1739102744130,3.2078,2661.7,2661.3,41.9429]
[1739102744335,2.994,2662.2,2661.5,3.2078]
[1739102744634,6.2018,2662.4,2661.5,3.2078]
[1739102744838,0.5464,2662.3,2661.5,3.2078]
[1739102745523,0.5464,2662.3,2661.6,0.593]
[1739102747029,6.2018,2662.4,2661.6,0.593]
[1739102747231,6.7708,2662.4,2661.6,0.593]
[1739102747431,3.7768,2662.4,2661.7,0.00563518]
[1739102748335,3.7768,2662.4,2661.8,40.8]
[1739102748531,3.7768,2662.4,2661.9,1.1708]
[1739102748933,3.7768,2662.4,2662.0,0.5912]
[1739102751035,4.31399584,2662.3,2661.9,1.1708]
[1739102751337,4.31399584,2662.3,2661.9,0.5906]
[1739102752438,4.31399584,2662.3,2661.7,0.00563518]
[1739102752633,4.83973584,2662.3,2661.7,0.00563518]
[1739102753033,4.31399584,2662.3,2661.7,0.00563518]
[1739102754933,3.2078,2662.2,2661.7,0.00563518]
[1739102755431,1.1257,2662.1,2661.7,0.00563518]
[1739102755733,0.5566,2662.1,2661.7,0.00563518]
[1739102760231,0.569,2662.4,2661.7,0.00563518]
[1739102760436,1.1221,2662.4,2661.7,0.00563518]
[1739102760638,1.1221,2662.4,2661.8,40.8]
[1739102760933,1.1221,2662.4,2661.9,0.5568]
[1739102761339,1.1221,2662.4,2662.0,0.5621]
[1739102761536,1.1221,2662.4,2662.1,0.5947]
[1739102768242,0.5916,2662.8,2662.1,0.5947]
[1739102768443,1.1005,2662.7,2662.1,3.8025]
[1739102770247,3.7722,2662.6,2662.1,3.8025]
[1739102771346,3.2078,2662.6,2662.1,3.8025]
[1739102771547,1.1005,2662.7,2662.1,3.8025]
[1739102773650,3.2078,2662.8,2662.1,3.8025]
[1739102775351,1.1413,2663.0,2662.1,3.8025]
[1739102775550,1.1413,2663.0,2662.4,3.2078]
[1739102775751,1.1413,2663.0,2662.5,1.1192]
[1739102775948,1.1413,2663.0,2662.6,0.6014]
[1739102777159,1.1413,2663.0,2662.5,1.1192]
[1739102777356,1.1413,2663.0,2662.5,0.5671]
[1739102777551,1.1413,2663.0,2662.6,0.562]
[1739102780758,0.5901,2663.0,2662.6,0.562]
[1739102781265,3.2078,2663.1,2662.6,0.562]
[1739102790965,3.2078,2662.8,2662.1,4.8468]
[1739102791172,1.7739,2662.7,2662.2,1.1635]
[1739102793067,1.1983,2662.7,2662.2,1.1635]
[1739102793365,3.2078,2663.1,2662.2,1.1635]
[1739102793569,1.1634,2663.0,2662.2,1.1635]
[1739102793974,1.1634,2663.0,2662.4,3.2078]
[1739102794271,1.1634,2663.0,2662.5,0.58]
[1739102794464,1.1634,2663.0,2662.6,0.5955]
[1739102794660,1.1634,2663.0,2662.6,1.1751]
[1739102796467,0.5666,2662.9,2662.6,1.1751]
[1739102797771,0.5666,2662.9,2662.1,4.8468]
[1739102797971,0.5666,2662.9,2662.2,1.7384]
[1739102801674,3.2078,2662.7,2662.2,1.7384]
[1739102802181,0.5666,2662.9,2662.2,1.7384]
[1739102802770,4.3712,2663.0,2662.2,1.7384]
[1739102805575,1.1634,2663.0,2662.4,3.2078]
[1739102806081,1.1634,2663.0,2662.5,40.8]
[1739102806279,1.1634,2663.0,2662.6,1.1869]
[1739102806478,1.1634,2663.0,2662.6,1.7865]
[1739102808275,3.2078,2663.4,2662.6,1.7865]
[1739102808482,1.1087,2663.3,2662.6,1.7865]
[1739102811582,1.1087,2663.3,2662.7,40.8]
[1739102812179,3.2078,2663.1,2662.7,40.8]
[1739102812773,3.2078,2663.1,2662.6,1.7865]
[1739102818899,3.2078,2663.1,2662.7,40.8]
[1739102822399,3.2078,2662.8,2662.3,3.2078]
[1739102822699,1.1534,2662.7,2662.4,1.1717]
[1739102822891,1.1534,2662.7,2662.4,41.9717]
[1739102823904,0.5633,2662.7,2662.4,41.9717]
[1739102833711,0.5633,2662.7,2662.4,1.1717]
[1739102834108,0.5633,2662.7,2661.7,6.24063518]
[1739102834109,3.2078,2662.5,2661.7,3.21343518]
[1739102834315,3.2078,2662.2,2661.7,4.34873518]
[1739102834511,1.1443,2662.1,2661.7,4.34873518]
[1739102834711,1.1443,2662.1,2661.8,0.5663]
[1739102836018,4.3521,2662.1,2661.8,0.5663]
[1739102836413,1.1443,2662.1,2661.8,0.5663]
[1739102836911,4.3521,2662.1,2661.8,0.5663]
[1739102838218,4.3521,2662.1,2661.7,45.14873518]
[1739102839616,4.3521,2662.1,2661.7,4.34873518]
[1739102840318,4.3521,2662.1,2661.7,3.21343518]
[1739102840816,3.2078,2661.8,2661.7,0.00563518]
[1739102841318,4.3521,2662.1,2661.7,0.00563518]
[1739102842616,4.16883343,2662.0,2661.7,0.00563518]
[1739102843819,4.75283343,2662.0,2661.7,0.00563518]
[1739102844812,0.52582,2661.8,2661.7,0.00563518]
[1739102845014,0.52582,2661.8,2661.2,3.7633]
[1739102845220,1.0983,2661.7,2661.2,3.7633]
[1739102845412,0.5976,2661.6,2661.2,44.5633]
[1739102845619,4.69097511,2661.6,2661.2,44.5633]
[1739102845818,4.69097511,2661.6,2661.2,3.7633]
[1739102846518,4.69097511,2661.6,2661.3,0.558]
[1739102847822,4.69097511,2661.6,2661.2,1.1031]
[1739102848215,4.69097511,2661.6,2661.2,0.5555]
[1739102848415,3.2078,2661.5,2661.2,0.5555]
[1739102848823,4.08295274,2661.4,2661.1,40.80563518]
[1739102849321,0.5842,2661.3,2661.1,0.00563518]
[1739102849516,3.771,2661.2,2661.1,0.00563518]
[1739102852619,7.92460722,2661.2,2661.1,0.00563518]
[1739102855623,7.92460722,2661.2,2660.7,41.3646]
[1739102856717,7.92460722,2661.2,2660.7,41.37023518]
[1739102858726,7.92460722,2661.2,2660.8,0.5511]
[1739102862325,3.2078,2660.9,2660.8,0.5511]
[1739102863426,7.25449212,2660.9,2660.7,0.57023518]
[1739102863726,0.5564,2660.8,2660.7,0.57023518]
[1739102864325,3.2078,2660.9,2660.7,0.57023518]
[1739102864526,3.2078,2661.2,2660.7,0.57023518]
[1739102864827,7.50700489,2661.2,2660.7,0.57023518]
[1739102865229,0.5753,2661.1,2660.7,0.57023518]
[1739102869132,1.1783,2661.1,2660.7,0.57023518]
[1739102870434,3.2078,2661.2,2660.7,0.57023518]
[1739102870832,4.27512322,2661.1,2660.7,0.57023518]
[1739102871332,4.82802322,2661.1,2660.7,0.57023518]
[1739102871537,5.41222322,2661.1,2660.7,0.57023518]
[1739102874125,3.2078,2660.9,2660.7,0.57023518]
[1739102874332,3.73381,2660.9,2660.2,0.5884]
[1739102874634,3.2078,2660.5,2659.8,40.8]
[1739102874835,1.1327,2660.4,2660.2,0.0884]
[1739102875738,4.04177223,2660.3,2660.2,0.0884]
[1739102876833,1.1327,2660.4,2660.2,0.0884]
[1739102878831,1.1327,2660.4,2660.3,0.561]
[1739102881033,5.21463248,2660.4,2660.0,0.00563518]
[1739102881234,6.30125248,2660.4,2660.0,0.00563518]
[1739102881432,3.2078,2660.2,2660.0,0.00563518]
[1739102881944,4.08193248,2660.1,2660.0,0.00563518]
[1739102882330,1.13833518,2660.4,2660.0,0.00563518]
[1739102882545,3.2078,2660.2,2660.0,0.00563518]
[1739102883541,3.94907619,2660.1,2660.0,0.00563518]
[1739102885942,3.94907619,2660.1,2659.4,0.5583]
[1739102885943,4.47524619,2660.1,2659.4,0.5583]
[1739102886141,3.2078,2659.9,2659.4,1.1456]
[1739102886543,5.84311927,2659.8,2659.4,0.5873]
[1739102886743,3.2078,2659.5,2659.1,0.5866]
[1739102887047,1.1764,2659.4,2658.8,44.0078]
[1739102887238,5.37060287,2659.4,2659.0,0.00563518]
[1739102888735,3.2078,2659.2,2659.0,0.00563518]
[1739102888941,0.5913,2659.4,2659.0,0.00563518]
[1739102889142,4.8478,2659.6,2659.0,0.00563518]
[1739102889441,4.07398436,2659.5,2659.0,0.00563518]
[1739102889642,0.5719,2659.4,2659.0,0.00563518]
[1739102890044,4.5010909,2659.3,2659.0,0.00563518]
[1739102891149,7.7088909,2659.3,2659.0,0.00563518]
[1739102891344,0.52641,2658.9,2658.2,1.6983]
[1739102891544,3.2078,2658.7,2658.2,1.6983]
[1739102891746,3.2078,2658.7,2658.2,42.4983]
[1739102892351,3.2078,2658.7,2658.2,1.6983]
[1739102892551,3.21343518,2658.7,2658.2,1.70393518]
[1739102892948,3.21343518,2658.7,2658.2,0.00563518]
[1739102892949,3.2078,2658.3,2658.2,0.00563518]
[1739102895459,3.2078,2658.6,2658.2,0.00563518]
[1739102895954,7.41601985,2658.6,2658.2,0.00563518]
[1739102896145,3.2078,2658.3,2658.2,0.00563518]
[1739102897649,7.22787679,2658.3,2657.9,41.9797]
[1739102897849,1.1405,2658.2,2657.9,40.8]
[1739102898250,3.2078,2658.0,2657.3,3.803]
[1739102898449,3.2078,2658.0,2657.4,1.1377]
[1739102898651,3.2078,2658.0,2657.5,40.8]
[1739102900152,3.2078,2658.4,2657.5,40.8]
[1739102900450,4.23534236,2658.3,2657.6,3.2078]
[1739102901151,4.83544236,2658.3,2657.6,3.2078]
[1739102901353,5.36197236,2658.3,2657.6,3.2078]
[1739102901547,4.83544236,2658.3,2657.6,3.2078]
[1739102901754,3.2078,2657.9,2657.5,40.8]
[1739102901955,1.1687,2657.8,2657.4,1.14149284]
[1739102902258,5.2678241,2657.8,2657.4,1.14149284]
[1739102902864,5.26450284,2657.8,2657.4,1.14149284]
[1739102904355,4.0991241,2657.8,2657.4,1.14149284]
[1739102905153,5.443,2658.2,2657.4,1.14149284]
[1739102905553,7.15761051,2657.9,2657.4,1.14149284]
[1739102905858,3.2078,2657.6,2656.7,3.2078]
[1739102906053,3.2078,2657.3,2656.8,0.5697]
[1739102906360,3.2078,2657.3,2656.8,41.3697]
[1739102907052,3.21344589,2657.3,2656.8,41.3697]
[1739102907861,3.2078,2657.0,2656.8,0.5697]
[1739102908157,3.2078,2657.0,2656.7,1.1792]
[1739102908358,1.142,2656.9,2656.3,41.4039]
[1739102908559,5.43987193,2656.9,2656.3,42.5315]
[1739102909255,5.43987193,2656.9,2656.3,1.7315]
[1739102909559,3.2078,2656.7,2656.3,1.7315]
[1739102909750,3.2078,2656.7,2656.3,1.1869]
[1739102909953,4.24398946,2656.6,2656.3,1.1869]
[1739102910356,3.2078,2656.7,2656.3,1.1869]
[1739102911960,2.2339,2656.9,2656.3,1.1869]
[1739102912369,0.5929,2656.9,2656.3,1.1869]
[1739102912656,3.2078,2657.0,2656.3,1.1869]
[1739102912861,3.2078,2657.0,2656.4,3.2078]
[1739102913059,1.305,2657.1,2656.5,0.5555]
[1739102914261,4.29646144,2657.0,2656.5,0.5555]
[1739102914872,4.29646144,2657.1,2656.5,0.5555]
[1739102915062,3.2078,2657.0,2656.3,1.1869]
[1739102915467,3.2078,2656.7,2656.3,1.1869]
[1739102915664,1.1327,2656.6,2656.3,1.1869]
[1739102915863,5.13276238,2656.6,2656.3,1.1869]
[1739102916465,3.2078,2656.7,2656.3,1.1869]
[1739102918160,0.5791,2656.6,2656.3,1.1869]
[1739102919356,0.5791,2656.6,2656.3,0.583]
[1739102919561,3.2078,2656.4,2656.0,0.593]
[1739102920170,0.5934,2656.5,2656.0,0.593]
[1739102920369,0.5791,2656.6,2656.0,0.593]
[1739102920973,2.994,2656.8,2656.0,3.8008]
[1739102921469,6.2018,2657.2,2656.6,3.2078]
[1739102921771,0.00564589,2657.3,2656.7,1.7286]
[1739102922168,4.01237,2657.2,2656.7,1.7286]
[1739102922770,4.60887,2657.2,2656.7,1.7286]
[1739102922979,5.15667,2657.2,2656.7,1.7286]
[1739102927077,4.60887,2657.2,2656.7,1.7286]
[1739102927376,0.00564589,2657.3,2656.7,1.7286]
[1739102927576,0.00564589,2657.3,2656.9,3.2078]
[1739102930083,0.00564589,2657.3,2657.0,40.8]
[1739102930475,0.00564589,2657.3,2657.1,0.594]
[1739102933376,0.60664589,2657.3,2657.1,0.594]
[1739102935982,0.60664589,2657.3,2656.7,1.1356]
[1739102936176,0.60664589,2657.3,2656.9,0.5807]
[1739102936576,0.60664589,2657.3,2656.7,1.1356]
[1739102936771,7.3833646,2657.2,2656.7,1.1356]
[1739102936975,7.3833646,2657.2,2656.6,3.2078]
[1739102937177,0.549,2657.1,2656.6,3.2078]
[1739102937578,4.90736796,2657.0,2656.6,3.2078]
[1739102938384,4.90736796,2657.0,2656.6,2.7078]
[1739102940985,4.90736796,2657.0,2656.0,40.8]
[1739102941191,3.2078,2656.3,2655.9,3.7885]
[1739102941382,1.1572,2656.2,2655.9,3.7885]
[1739102942183,1.1572,2656.2,2655.9,3.2078]
[1739102942784,1.1572,2656.2,2655.7,0.5659]